fUST/lending_fUST_20240828
["ID","MTS","AMOUNT","RATE_DAILY","PERIOD"]
[336435772,1724825453654,-502.42,0.00015068,2]
[336435773,1724825453664,-500.0,0.00015068,2]
[336435774,1724825453673,-841.18,0.00015068,2]
[336435775,1724825453684,-904.8,0.00015068,2]
[336435776,1724825453693,-2056.61,0.00015068,2]
[336435777,1724825453703,-5491.89,0.00015068,2]
[336435778,1724825453712,-833.25,0.00015068,2]
[336435779,1724825453722,-512.86,0.00015068,2]
[336435780,1724825453733,-694.27,0.00015068,2]
[336435781,1724825453744,-541.49,0.00015068,2]
[336435782,1724825453753,-1388.98,0.00015068,2]
[336435783,1724825453762,-500.0,0.00015068,2]
[336435784,1724825453772,-2928.65,0.00015068,2]
[336435785,1724825453781,-1128.41,0.00015068,2]
[336435786,1724825453792,-2361.38,0.00015068,2]
[336435787,1724825453803,-5583.70176656,0.0001514,2]
[336435788,1724825453812,-600.0,0.00015148,2]
[336435789,1724825453823,-600.0,0.00015148,2]
[336435790,1724825453832,-150.112233,0.000152,2]
[336435791,1724825453842,-150.112233,0.000152,2]
[336435792,1724825453852,-500.0,0.00015342,2]
[336435793,1724825453862,-502.42,0.00015342,2]
[336435794,1724825453872,-500.0,0.00015342,2]
[336435795,1724825453881,-841.18,0.00015342,2]
[336435796,1724825453890,-904.8,0.00015342,2]
[336435797,1724825453899,-2056.61,0.00015342,2]
[336435798,1724825453910,-5491.89,0.00015342,2]
[336435799,1724825453923,-833.25,0.00015342,2]
[336435800,1724825453933,-512.86,0.00015342,2]
[336435801,1724825453946,-694.27,0.00015342,2]
[336435802,1724825453956,-541.49,0.00015342,2]
[336435803,1724825453968,-1388.98,0.00015342,2]
[336435804,1724825453978,-419.9,0.00015342,2]
[336435805,1724825453989,-2928.65,0.00015342,2]
[336435806,1724825454000,-1128.41,0.00015342,2]
[336435807,1724825454011,-2361.38,0.00015342,2]
[336435808,1724825454023,-5583.70176656,0.00015462,2]
[336435809,1724825454033,-534.01,0.00015615,2]
[336435810,1724825454043,-250.62680261,0.00015616,2]
[336435811,1724825454054,-502.42,0.00015616,2]
[336435812,1724825454064,-500.0,0.00015616,2]
[336435813,1724825454076,-841.18,0.00015616,2]
[336435814,1724825454086,-904.8,0.00015616,2]
[336435815,1724825454095,-2056.61,0.00015616,2]
[336435816,1724825454106,-5491.89,0.00015616,2]
[336435817,1724825454126,-833.25,0.00015616,2]
[336435818,1724825454137,-512.86,0.00015616,2]
[336435819,1724825454148,-694.27,0.00015616,2]
[336435820,1724825454159,-541.49,0.00015616,2]
[336435821,1724825454169,-1388.98,0.00015616,2]
[336435822,1724825454180,-2928.65,0.00015616,2]
[336435823,1724825454191,-1128.41,0.00015616,2]
[336435824,1724825454202,-2361.38,0.00015616,2]
[336435825,1724825454213,-3935.6100243,0.000158,2]
[336435826,1724825454223,-5583.70176656,0.00015868,2]
[336435827,1724825454232,-502.42,0.0001589,2]
[336435828,1724825454242,-500.0,0.0001589,2]
[336435829,1724825454252,-841.18,0.0001589,2]
[336435830,1724825454263,-904.8,0.0001589,2]
[336435831,1724825454273,-2056.61,0.0001589,2]
[336435832,1724825454282,-5491.89,0.0001589,2]
[336435833,1724825454292,-833.25,0.0001589,2]
[336435834,1724825454302,-512.86,0.0001589,2]
[336435835,1724825454313,-694.27,0.0001589,2]
[336435836,1724825454322,-541.49,0.0001589,2]
[336435837,1724825454334,-1388.98,0.0001589,2]
[336435838,1724825454345,-2928.65,0.0001589,2]
[336435839,1724825454355,-1128.41,0.0001589,2]
[336435840,1724825454368,-2361.38,0.0001589,2]
[336435841,1724825454380,-150.112233,0.000159,2]
[336435842,1724825454391,-150.112233,0.00016,2]
[336435843,1724825454401,-5583.70176656,0.00016072,2]
[336435844,1724825454412,-502.42,0.00016164,2]
[336435845,1724825454422,-500.0,0.00016164,2]
[336435846,1724825454433,-841.18,0.00016164,2]
[336435847,1724825454442,-904.8,0.00016164,2]
[336435848,1724825454453,-2056.61,0.00016164,2]
[336435849,1724825454463,-5491.89,0.00016164,2]
[336435850,1724825454472,-833.25,0.00016164,2]
[336435851,1724825454482,-512.86,0.00016164,2]
[336435852,1724825454493,-694.27,0.00016164,2]
[336435853,1724825454503,-541.49,0.00016164,2]
[336435854,1724825454515,-1388.98,0.00016164,2]
[336435855,1724825454525,-2928.65,0.00016164,2]
[336435856,1724825454536,-1128.41,0.00016164,2]
[336435857,1724825454547,-2361.38,0.00016164,2]
[336435858,1724825454558,-5583.70176656,0.00016218,2]
[336435859,1724825454567,-3216.003,0.00016437,2]
[336435860,1724825454576,-502.42,0.00016438,2]
[336435861,1724825454585,-396.28,0.00016438,2]
[336435862,1724825454594,-841.18,0.00016438,2]
[336435863,1724825454607,-904.8,0.00016438,2]
[336435864,1724825454617,-2056.61,0.00016438,2]
[336435865,1724825454626,-5491.89,0.00016438,2]
[336435866,1724825454635,-833.25,0.00016438,2]
[336435867,1724825454645,-512.86,0.00016438,2]
[336435868,1724825454654,-694.27,0.00016438,2]
[336435869,1724825454664,-541.49,0.00016438,2]
[336435870,1724825454673,-1388.98,0.00016438,2]
[336435871,1724825454685,-2928.65,0.00016438,2]
[336435872,1724825454695,-1128.41,0.00016438,2]
[336435873,1724825454704,-2361.38,0.00016438,2]
[336435874,1724825454714,-150.0,0.00016545,2]
[336435875,1724825454723,-150.0,0.00016583,2]
[336435876,1724825454733,-522.0,0.00016583,2]
[336435877,1724825454744,-534.01,0.00016584,2]
[336435878,1724825454755,-150.112233,0.000166,2]
[336435879,1724825454766,-534.01,0.00016604,2]
[336435880,1724825454779,-534.01,0.00016604,2]
[336435881,1724825454790,-534.01,0.00016604,2]
[336435882,1724825454802,-534.01,0.00016604,2]
[336435883,1724825454814,-534.11939777,0.00016604,2]
[336435884,1724825454827,-14239.44007845,0.00016605,2]
[336435885,1724825454837,-14239.44007845,0.00016605,2]
[336435886,1724825454848,-5583.70176656,0.00016699,2]
[336435887,1724825454860,-150.112233,0.000167,2]
[336435888,1724825454870,-502.42,0.00016712,2]
[336435889,1724825454880,-841.18,0.00016712,2]
[336435890,1724825454892,-904.8,0.00016712,2]
[336435891,1724825454901,-2056.61,0.00016712,2]
[336435892,1724825454911,-5491.89,0.00016712,2]
[336435893,1724825454921,-833.25,0.00016712,2]
[336435894,1724825454931,-512.86,0.00016712,2]
[336435895,1724825454942,-694.27,0.00016712,2]
[336435896,1724825454952,-541.49,0.00016712,2]
[336435897,1724825454961,-1388.98,0.00016712,2]
[336435898,1724825454971,-2928.65,0.00016712,2]
[336435899,1724825454980,-1128.41,0.00016712,2]
[336435900,1724825454990,-5583.70176656,0.00016821,2]
[336435901,1724825454999,-1918.58350808,0.00016986,5]
[336435902,1724825455008,-502.42,0.00016986,2]
[336435903,1724825455018,-841.18,0.00016986,2]
[336435904,1724825455027,-904.8,0.00016986,2]
[336435905,1724825455037,-2056.61,0.00016986,2]
[336435906,1724825455046,-5491.89,0.00016986,2]
[336435907,1724825455056,-833.25,0.00016986,2]
[336435908,1724825455065,-512.86,0.00016986,2]
[336435909,1724825455075,-694.27,0.00016986,2]
[336435910,1724825455084,-541.49,0.00016986,2]
[336435911,1724825455094,-1388.98,0.00016986,2]
[336435912,1724825455106,-2928.65,0.00016986,2]
[336435913,1724825455119,-1128.41,0.00016986,2]
[336435914,1724825455130,-20806.3048966,0.00017092,2]
[336435915,1724825455141,-1012.24206773,0.00017174,2]
[336435916,1724825455152,-5583.70176656,0.00017221,2]
[336435917,1724825455162,-337.13775619,0.00017259,2]
[336435918,1724825455171,-533.26610706,0.00017259,2]
[336435919,1724825455180,-533.26610706,0.00017259,2]
[336435920,1724825455191,-502.55,0.0001726,2]
[336435921,1724825455201,-841.23905311,0.0001726,2]
[336435922,1724825455213,-904.87,0.0001726,2]
[336435923,1724825455224,-2056.65065685,0.0001726,2]
[336435924,1724825455234,-5491.96630876,0.0001726,2]
[336435925,1724825455243,-833.41,0.0001726,2]
[336435926,1724825455253,-512.92,0.0001726,2]
[336435927,1724825455264,-694.43657277,0.0001726,2]
[336435928,1724825455275,-541.66,0.0001726,2]
[336435929,1724825455285,-1389.02,0.0001726,2]
[336435930,1724825455296,-2928.73,0.0001726,2]
[336435931,1724825455308,-1128.46,0.0001726,2]
[336435932,1724825455319,-1831.32589662,0.00017267,2]
[336435933,1724825455331,-154.54409492,0.00017267,2]
[336435934,1724825455340,-150.112233,0.000173,2]
[336435935,1724825455349,-150.112233,0.000174,2]
[336435936,1724825455474,-5583.70176656,0.00017511,2]
[336435937,1724825455486,-5583.70176656,0.0001777,2]
[336435938,1724825455496,-10348.85088979,0.00017898,2]
[336435939,1724825455507,-5583.70176656,0.00017941,2]
[336435940,1724825455519,-150.112233,0.000181,2]
[336435941,1724825455530,-5583.70176656,0.00018175,2]
[336435942,1724825455541,-150.112233,0.000182,2]
[336435943,1724825455551,-700.0,0.00018432,2]
[336435944,1724825455562,-5583.70176656,0.0001845,2]
[336435945,1724825455572,-154.74467129,0.0001854,2]
[336435946,1724825455584,-1800.0,0.00018606,2]
[336435947,1724825455595,-5583.70176656,0.00018747,2]
[336435948,1724825455611,-150.112233,0.000188,2]
[336435949,1724825455621,-1500.0,0.00018845,2]
[336435950,1724825455631,-1800.0,0.00018868,2]
[336435951,1724825455644,-150.112233,0.000189,2]
[336435952,1724825455654,-692.947717,0.00018904,2]
[336435953,1724825455664,-2200.0,0.00018999,2]
[336435954,1724825455674,-500.0,0.00018999,2]
[336435955,1724825455685,-1500.0,0.00019036,2]
[336435956,1724825455695,-700.0,0.00019098,2]
[336435957,1724825455705,-5583.70176656,0.00019129,2]
[336435958,1724825455714,-258.21133984,0.00019177,2]
[336435959,1724825455724,-217.765131,0.00019178,2]
[336435960,1724825455734,-251.0,0.00019178,2]
[336435961,1724825455746,-241.82106656,0.0001918,2]
[336435962,1724825455757,-241.82106656,0.0001918,2]
[336435963,1724825455767,-241.82106656,0.0001918,2]
[336435964,1724825455778,-241.82106656,0.0001918,2]
[336435965,1724825455789,-241.82106656,0.0001918,2]
[336435966,1724825455799,-241.82106656,0.0001918,2]
[336435967,1724825455812,-241.82106656,0.0001918,2]
[336435968,1724825455821,-241.82106656,0.0001918,2]
[336435969,1724825455831,-241.82106656,0.0001918,2]
[336435970,1724825455841,-241.82106656,0.0001918,2]
[336435971,1724825455854,-241.82106656,0.0001918,2]
[336435972,1724825455865,-241.82106656,0.0001918,2]
[336435973,1724825455874,-241.82106656,0.0001918,2]
[336435974,1724825455885,-241.82106656,0.0001918,2]
[336435975,1724825455894,-241.82106656,0.0001918,2]
[336435976,1724825455904,-241.82106656,0.0001918,2]
[336435977,1724825455914,-241.82106656,0.0001918,2]
[336435978,1724825455924,-241.82106656,0.0001918,2]
[336435979,1724825455934,-241.82106656,0.0001918,2]
[336435980,1724825455943,-242.32,0.0001918,2]
[336435981,1724825455954,-153.38504374,0.0001918,2]
[336435982,1724825455963,-153.38504374,0.0001918,2]
[336435983,1724825455973,-153.38504374,0.0001918,2]
[336435984,1724825455982,-153.38504374,0.0001918,2]
[336435985,1724825455992,-153.38504374,0.0001918,2]
[336435986,1724825456002,-153.38504374,0.0001918,2]
[336435987,1724825456012,-153.38504374,0.0001918,2]
[336435988,1724825456022,-153.38504374,0.0001918,2]
[336435989,1724825456032,-153.38504374,0.0001918,2]
[336435990,1724825456042,-153.38504374,0.0001918,2]
[336435991,1724825456053,-153.38504374,0.0001918,2]
[336435992,1724825456063,-153.38504374,0.0001918,2]
[336435993,1724825456074,-153.38504374,0.0001918,2]
[336435994,1724825456083,-153.38504374,0.0001918,2]
[336435995,1724825456095,-153.38504374,0.0001918,2]
[336435996,1724825456106,-153.38504374,0.0001918,2]
[336435997,1724825456117,-153.38504374,0.0001918,2]
[336435998,1724825456126,-153.38504374,0.0001918,2]
[336435999,1724825456136,-153.38504374,0.0001918,2]
[336436000,1724825456145,-153.88,0.0001918,2]
[336436001,1724825456155,-1500.0,0.00019374,2]
[336436002,1724825456165,-5583.70176656,0.00019396,2]
[336436003,1724825456177,-150.112233,0.000195,2]
[336436004,1724825456188,-150.0,0.00019512,2]
[336436005,1724825456200,-150.0,0.00019545,2]
[336436006,1724825456209,-150.0,0.00019583,2]
[336436007,1724825456217,-522.0,0.00019583,2]
[336436008,1724825456227,-5583.70176656,0.00019673,2]
[336436009,1724825456238,-150.112233,0.000197,2]
[336436010,1724825456248,-1500.0,0.00019801,2]
[336436011,1724825456257,-2200.0,0.00019867,2]
[336436012,1724825456266,-5583.70176656,0.00019873,2]
[336436013,1724825456275,-466.07749367,0.00019882,2]
[336436014,1724825456286,-153.0,0.00019886,2]
[336436015,1724825456297,-150.0,0.00019909,2]
[336436016,1724825456306,-20192.28361855,0.0002,2]
[336436017,1724825456315,-223.60838586,0.0002,2]
[336436018,1724825456324,-154.74467129,0.0002,2]
[336436019,1724825456334,-300.81455507,0.0002,2]
[336436020,1724825456344,-1000.0,0.0002,7]
[336436021,1724825456355,-4000.0,0.0002,2]
[336436022,1724825456367,-12900.0,0.0002,2]
[336436023,1724825456378,-500.0,0.0002,2]
[336436024,1724825456388,-500.0,0.0002,2]
[336436025,1724825456399,-503.59009378,0.0002,2]
[336436026,1724825456409,-171.473781,0.0002,2]
[336436027,1724825456419,-151.0,0.0002,2]
[336436028,1724825456430,-500.0,0.00020065,2]
[336436029,1724825456441,-1500.0,0.00020177,2]
[336436030,1724825456452,-500.0,0.00020181,2]
[336436031,1724825456464,-503.59009378,0.000202,2]
[336436032,1724825456476,-150.0,0.00020213,2]
[336436033,1724825456486,-5583.70176671,0.00020222,2]
[336436034,1724825456498,-1500.0,0.00020247,2]
[336436035,1724825456508,-1500.0,0.00020292,2]
[336436036,1724825456520,-134437.72802251,0.00020377,2]
[336436037,1724825456530,-151.0,0.00020377,2]
[336436038,1724825456542,-151.0,0.00020377,2]
[336436039,1724825456552,-151.0,0.00020377,2]
[336436040,1724825456562,-3127.43486,0.00020377,2]
[336436041,1724825456575,-3127.43486,0.00020377,2]
[336436042,1724825456587,-151.0,0.00020377,2]
[336436043,1724825456599,-151.0,0.00020377,2]
[336436044,1724825456613,-1490.40798,0.00020377,2]
[336436045,1724825456624,-1490.40798,0.00020377,2]
[336436046,1724825456636,-151.0,0.00020377,2]
[336436047,1724825456647,-712.846096,0.00020377,2]
[336436048,1724825456656,-712.846096,0.00020377,2]
[336436049,1724825456666,-151.0,0.00020377,2]
[336436050,1724825456677,-503.59009378,0.000204,2]
[336436051,1724825456688,-2200.0,0.00020406,2]
[336436052,1724825456698,-700.0,0.00020486,2]
[336436053,1724825456711,-286.720188,0.00020548,2]
[336436054,1724825456722,-5389.77550797,0.00020551,15]
[336436055,1724825456734,-503.59009378,0.000206,2]
[336436056,1724825456746,-2200.0,0.00020603,2]
[336436057,1724825456755,-2200.0,0.00020611,2]
[336436058,1724825456766,-150.0,0.00020655,2]
[336436059,1724825456777,-4259.32330553,0.0002066,7]
[336436060,1724825456788,-153.0,0.00020665,2]
[336436061,1724825456800,-153.0,0.00020665,2]
[336436062,1724825456811,-153.0,0.00020665,2]
[336436063,1724825456821,-153.0,0.00020665,2]
[336436064,1724825456832,-153.0,0.00020665,2]
[336436065,1724825456845,-750.0,0.00020707,2]
[336436066,1724825456856,-1800.0,0.00020767,2]
[336436067,1724825456867,-503.59009378,0.000208,2]
[336436068,1724825456879,-1500.0,0.00020815,2]
[336436069,1724825456889,-1500.0,0.0002082,2]
[336436070,1724825456899,-500.0,0.00020831,2]
[336436071,1724825456908,-500.0,0.00020846,2]
[336436072,1724825456919,-150.0,0.0002087,2]
[336436073,1724825456929,-465.05387468,0.00020876,2]
[336436074,1724825456939,-500.0,0.00020969,2]
[336436075,1724825456949,-1800.0,0.00020982,2]
[336436076,1724825456959,-400.0,0.00021,7]
[336436077,1724825456969,-8217.07578201,0.00021,5]
[336436078,1724825456979,-258.66216953,0.00021,2]
[336436079,1724825456989,-10152.45559725,0.00021,2]
[336436080,1724825456999,-233.10421278,0.00021,2]
[336436081,1724825457009,-3000.0,0.00021,2]
[336436082,1724825457021,-512.0,0.00021,2]
[336436083,1724825457032,-463.58,0.00021,31]
[336436084,1724825457042,-463.58,0.00021,31]
[336436085,1724825457053,-463.58,0.00021,31]
[336436086,1724825457064,-463.58,0.00021,31]
[336436087,1724825457076,-463.58,0.00021,31]
[336436088,1724825457086,-463.58,0.00021,31]
[336436089,1724825457098,-463.58,0.00021,31]
[336436090,1724825457109,-463.58,0.00021,31]
[336436091,1724825457122,-463.58,0.00021,31]
[336436092,1724825457132,-463.58,0.00021,31]
[336436093,1724825457143,-463.58,0.00021,31]
[336436094,1724825457153,-463.58,0.00021,31]
[336436095,1724825457165,-463.58,0.00021,31]
[336436096,1724825457178,-463.58,0.00021,31]
[336436097,1724825457189,-463.58,0.00021,31]
[336436098,1724825457199,-463.58,0.00021,31]
[336436099,1724825457208,-503.59009378,0.00021,2]
[336436100,1724825457218,-3000.0,0.0002101,2]
[336436101,1724825457228,-3000.0,0.0002102,2]
[336436102,1724825457240,-151.0,0.0002102,2]
[336436103,1724825457252,-3000.0,0.0002103,2]
[336436104,1724825457263,-1000.0,0.00021031,2]
[336436105,1724825457274,-500.0,0.00021036,2]
[336436106,1724825457286,-3000.0,0.0002104,2]
[336436107,1724825457298,-3000.0,0.0002105,2]
[336436108,1724825457309,-215.92985,0.0002106,2]
[336436109,1724825457319,-215.92985,0.0002106,2]
[336436110,1724825457330,-3000.0,0.0002106,2]
[336436111,1724825457341,-3000.0,0.0002107,2]
[336436112,1724825457351,-3000.0,0.0002108,2]
[336436113,1724825457361,-3000.0,0.0002109,2]
[336436114,1724825457380,-3000.0,0.000211,2]
[336436115,1724825457391,-150.0,0.000211,2]
[336436116,1724825457402,-1000.0,0.000211,2]
[336436117,1724825457413,-1800.0,0.00021101,2]
[336436118,1724825457424,-3000.0,0.0002111,2]
[336436119,1724825457435,-316.76293448,0.00021119,2]
[336436120,1724825457446,-10739.94367469,0.00021119,2]
[336436121,1724825457457,-3000.0,0.0002112,2]
[336436122,1724825457467,-3000.0,0.0002113,2]
[336436123,1724825457478,-3000.0,0.0002114,2]
[336436124,1724825457488,-1500.0,0.00021147,2]
[336436125,1724825457498,-3000.0,0.0002115,2]
[336436126,1724825457511,-1104.91813935,0.0002116,2]
[336436127,1724825457652,-933.33,0.0001452,2]
[336436128,1724825457662,-933.33,0.00014794,2]
[336436129,1724825457672,-933.33,0.00015068,2]
[336436130,1724825457684,-933.33,0.00015342,2]
[336436131,1724825457694,-933.33,0.00015616,2]
[336436132,1724825457704,-933.33,0.0001589,2]
[336436133,1724825457715,-933.33,0.00016164,2]
[336436134,1724825457727,-933.33,0.00016438,2]
[336436135,1724825457740,-2361.38,0.00016712,2]
[336436136,1724825457750,-933.33,0.00016712,2]
[336436137,1724825457759,-2361.38,0.00016986,2]
[336436138,1724825457769,-2361.42069132,0.0001726,2]
[336436139,1724825457777,-904.1638,0.00020377,2]
[336436140,1724825457787,-1895.08186065,0.0002116,2]
[336436141,1724825457796,-499.3,0.00021165,2]
[336436142,1724825457806,-1800.0,0.00021169,2]
[336436143,1724825457815,-3000.0,0.0002117,2]
[336436144,1724825457825,-151.0,0.0002118,2]
[336436145,1724825457834,-151.0,0.0002118,2]
[336436146,1724825457843,-151.0,0.0002118,2]
[336436147,1724825457853,-151.0,0.0002118,2]
[336436148,1724825457867,-151.0,0.0002118,2]
[336436149,1724825457876,-151.0,0.0002118,2]
[336436150,1724825457885,-3000.0,0.0002118,2]
[336436151,1724825457894,-3000.0,0.0002119,2]
[336436152,1724825457903,-504.56657458,0.000212,2]
[336436153,1724825457914,-791.36575084,0.000212,30]
[336436154,1724825457923,-3000.0,0.000212,2]
[336436155,1724825457934,-503.59009378,0.000212,2]
[336436156,1724825457946,-3000.0,0.0002121,2]
[336436157,1724825457957,-3000.0,0.0002122,2]
[336436158,1724825457967,-151.0,0.00021229,2]
[336436159,1724825457978,-151.0,0.00021229,2]
[336436160,1724825457989,-3000.0,0.0002123,2]
[336436161,1724825458000,-1800.0,0.00021231,2]
[336436162,1724825458012,-2200.0,0.00021236,2]
[336436163,1724825458022,-3000.0,0.0002124,2]
[336436164,1724825458031,-3000.0,0.0002125,2]
[336436165,1724825458041,-3000.0,0.0002126,2]
[336436166,1724825458051,-3000.0,0.0002127,2]
[336436167,1724825458061,-3000.0,0.0002128,2]
[336436168,1724825458072,-3000.0,0.0002129,2]
[336436169,1724825458083,-3000.0,0.000213,2]
[336436170,1724825458093,-3000.0,0.0002131,2]
[336436172,1724825458104,-3000.0,0.0002132,2]
[336436173,1724825458116,-3000.0,0.0002133,2]
[336436174,1724825458128,-3000.0,0.0002134,2]
[336436175,1724825458137,-3000.0,0.0002135,2]
[336436176,1724825458147,-500.0,0.00021352,2]
[336436177,1724825458157,-562.60526833,0.0002136,2]
[336436178,1724825458171,-2437.39473167,0.0002136,2]
[336436179,1724825458183,-3000.0,0.0002137,2]
[336436180,1724825458195,-3000.0,0.0002138,2]
[336436181,1724825458206,-3000.0,0.0002139,2]
[336436182,1724825458216,-500.0,0.00021398,2]
[336436183,1724825458226,-2891.19650123,0.000214,2]
[336436255,1724826337225,-237.82616407,8.861e-05,2]
[336436259,1724826432119,-178.9583936,9.579e-05,2]
[336436260,1724826432142,-610.04769128,9.858e-05,2]
[336436261,1724826439109,-4542.86810742,9.858e-05,2]
[336436262,1724826439146,-300.0,0.00010739,2]
[336436263,1724826439171,-242.0,0.00010739,2]
[336436264,1724826439197,-166.89815385,0.0001074,2]
[336436265,1724826439221,-500.0,0.00010958,2]
[336436266,1724826439245,-507.2,0.00010958,2]
[336436267,1724826439268,-500.0,0.00010958,2]
[336436268,1724826439290,-500.0,0.00010958,2]
[336436269,1724826439313,-113.03754219,0.00010958,2]
[336436280,1724826562271,-212.37827505,9.9e-05,2]
[336436281,1724826562297,-9414.11716091,0.0001026,2]
[336436282,1724826574246,-36.71424116,0.0001026,2]
[336436348,1724826638480,-500.0,0.00010958,2]
[336436349,1724826638491,-500.0,0.00010958,2]
[336436350,1724826638500,-500.0,0.00010958,2]
[336436351,1724826638510,-232.52979759,0.00010958,2]
[336436352,1724826638519,-500.0,0.00010958,2]
[336436353,1724826638528,-502.05045916,0.00010958,2]
[336436354,1724826638538,-56.5826686,0.00010958,2]
[336436355,1724826638554,-443.4173314,0.00010958,2]
[336436356,1724826638564,-500.5856213,0.00010958,2]
[336436357,1724826638574,-503.20642777,0.00010958,2]
[336436358,1724826638583,-500.0,0.00010958,2]
[336436359,1724826638592,-500.0,0.00010958,2]
[336436360,1724826638601,-500.0,0.00010958,2]
[336436361,1724826638610,-500.0,0.00010958,2]
[336436362,1724826638619,-500.0,0.00010958,2]
[336436363,1724826638628,-208.0648611,0.00010958,2]
[336436364,1724826638637,-500.0,0.00010958,2]
[336436365,1724826638647,-500.0,0.00010958,2]
[336436366,1724826638657,-500.0,0.00010958,2]
[336436367,1724826638666,-500.81343307,0.00010958,2]
[336436368,1724826638675,-502.2796137,0.00010958,2]
[336436369,1724826638684,-500.0,0.00010958,2]
[336436370,1724826638694,-500.0,0.00010958,2]
[336436371,1724826638702,-500.0,0.00010958,2]
[336436372,1724826638712,-500.0,0.00010958,2]
[336436373,1724826638722,-502.05947551,0.00010958,2]
[336436374,1724826638731,-500.0,0.00010958,2]
[336436375,1724826638742,-501.59538685,0.00010958,2]
[336436376,1724826638751,-500.0,0.00010958,2]
[336436377,1724826638761,-626.58753105,0.00010958,2]
[336436378,1724826638770,-500.0,0.00010958,2]
[336436379,1724826638780,-500.0,0.00010958,2]
[336436380,1724826638789,-491.64178261,0.00010958,2]
[336436381,1724826638799,-500.0,0.00010958,2]
[336436382,1724826638809,-500.0,0.00010958,2]
[336436383,1724826638819,-500.0,0.00010958,2]
[336436384,1724826638828,-500.0,0.00010958,2]
[336436385,1724826638838,-500.0,0.00010958,2]
[336436386,1724826638848,-500.0,0.00010958,2]
[336436387,1724826638857,-500.0,0.00010958,2]
[336436388,1724826638867,-33.96823517,0.00010958,2]
[336436389,1724826638883,-468.99340361,0.00010958,2]
[336436390,1724826638893,-500.0,0.00010958,2]
[336436391,1724826638902,-500.0,0.00010958,2]
[336436392,1724826638912,-500.0,0.00010958,2]
[336436393,1724826638921,-500.65525425,0.00010958,2]
[336436394,1724826638931,-502.07123917,0.00010958,2]
[336436395,1724826638941,-500.0,0.00010958,2]
[336436396,1724826638950,-500.0,0.00010958,2]
[336436397,1724826638960,-500.0,0.00010958,2]
[336436398,1724826638973,-501.78518697,0.00010958,2]
[336436399,1724826638985,-500.0,0.00010958,2]
[336436400,1724826638994,-500.0,0.00010958,2]
[336436401,1724826639004,-500.0,0.00010958,2]
[336436402,1724826639174,-500.0,0.00010958,2]
[336436403,1724826639183,-500.0,0.00010958,2]
[336436404,1724826639192,-500.0,0.00010958,2]
[336436405,1724826639202,-500.0,0.00010958,2]
[336436406,1724826639211,-500.0,0.00010958,2]
[336436407,1724826639220,-500.0,0.00010958,2]
[336436408,1724826639229,-500.0,0.00010958,2]
[336436409,1724826639238,-500.0,0.00010958,2]
[336436410,1724826639247,-500.0,0.00010958,2]
[336436411,1724826639257,-500.0,0.00010958,2]
[336436412,1724826639266,-500.0,0.00010958,2]
[336436413,1724826639276,-500.0,0.00010958,2]
[336436414,1724826639286,-500.0,0.00010958,2]
[336436415,1724826639296,-500.0,0.00010958,2]
[336436416,1724826639305,-500.0,0.00010958,2]
[336436417,1724826639314,-500.0,0.00010958,2]
[336436418,1724826639323,-500.0,0.00010958,2]
[336436419,1724826639333,-500.0,0.00010958,2]
[336436420,1724826639343,-500.0,0.00010958,2]
[336436421,1724826639352,-539.62,0.00010958,2]